bitfinex-derivatives/quotes_ETHF0:USTF0_20241017
["timestamp","ask_amount","ask_price","bid_price","bid_amount"]
[1729171125271,0.38334,2609.3,2609.2,3.59115]
[1729171125471,0.38334,2609.3,2609.2,3.2078]
[1729171125664,0.95828,2609.5,2608.8,0.7921]
[1729171125869,0.38337,2609.1,2608.9,0.38339]
[1729171126466,0.38337,2609.1,2609.0,0.38338]
[1729171126667,0.38337,2609.1,2608.8,0.7921]
[1729171126868,0.38337,2609.1,2609.0,0.38338]
[1729171130376,0.3833,2609.6,2609.1,0.38336]
[1729171130675,0.3833,2609.6,2609.2,0.38334]
[1729171130676,0.38332,2609.4,2609.2,0.38334]
[1729171130866,0.80502,2609.5,2609.3,0.38333]
[1729171131063,0.4217,2609.5,2609.4,0.38332]
[1729171131263,0.80501,2609.5,2609.4,0.38332]
[1729171131464,0.38333,2609.4,2609.3,0.38333]
[1729171131665,0.80501,2609.5,2609.4,0.38332]
[1729171134477,0.4217,2609.5,2609.4,0.38332]
[1729171134679,0.80501,2609.5,2609.4,0.38332]
[1729171135280,0.4217,2609.5,2609.4,0.38332]
[1729171138374,0.80501,2609.5,2609.4,0.38332]
[1729171138574,0.4217,2609.5,2609.4,0.38332]
[1729171138781,3.2078,2609.8,2609.5,0.38331]
[1729171139084,3.2078,2609.8,2609.7,0.38328]
[1729171139381,3.59106,2609.8,2609.7,0.38328]
[1729171139583,3.2078,2609.8,2609.7,0.38328]
[1729171139886,3.59106,2609.8,2609.7,0.38328]
[1729171141884,0.38326,2609.8,2609.7,0.38328]
[1729171143785,3.2078,2609.9,2609.8,0.38326]
[1729171144087,3.59105,2609.9,2609.8,0.38326]
[1729171147387,16.0298,2609.9,2609.1,2.00676561]
[1729171147585,3.59111,2609.5,2609.4,0.38331]
[1729171148179,3.2078,2609.5,2609.4,0.38331]
[1729171148790,3.59111,2609.5,2609.4,0.38331]
[1729171149083,0.38331,2609.5,2609.4,0.38331]
[1729171149293,3.59111,2609.5,2609.3,0.38332]
[1729171149692,3.59111,2609.5,2609.4,0.38332]
[1729171149884,0.38332,2609.4,2609.3,0.38333]
[1729171152292,3.2078,2609.5,2609.3,0.38334]
[1729171152487,0.38332,2609.4,2609.3,0.38334]
[1729171153699,6.1978,2609.5,2608.9,3.2078]
[1729171153887,6.1978,2609.5,2609.1,0.38336]
[1729171153888,1.38,2609.2,2609.1,0.38336]
[1729171154186,1.38,2609.2,2609.0,1.789]
[1729171154391,0.38336,2609.1,2609.0,2.17238]
[1729171154590,0.38338,2609.0,2608.9,1.38]
[1729171154791,0.38338,2609.0,2608.8,0.7924]
[1729171155093,0.38338,2609.0,2608.9,1.76339]
[1729171155591,0.38339,2608.9,2608.8,2.1724]
[1729171155785,0.38339,2608.9,2608.8,0.7924]
[1729171160601,1.2586,2609.1,2608.8,0.409]
[1729171160903,0.38339,2609.0,2608.9,0.38339]
[1729171161402,2.99,2609.4,2608.9,0.38339]
[1729171161403,3.2078,2609.6,2609.1,0.38336]
[1729171161598,0.38335,2609.2,2609.1,0.38336]
[1729171164601,0.38339,2609.0,2608.9,0.38338]
[1729171165598,0.95836,2609.3,2608.8,0.409]
[1729171165599,4.16616,2609.3,2608.8,0.409]
[1729171165799,0.38339,2609.0,2608.9,0.38339]
[1729171166395,3.2078,2609.3,2608.8,0.409]
[1729171166595,0.38339,2609.0,2608.9,0.38339]
[1729171167407,0.38336,2609.2,2609.1,0.38336]
[1729171167996,0.38337,2609.1,2609.0,0.38337]
[1729171168906,0.38336,2609.2,2609.1,0.38335]
[1729171170508,1.62123,2609.4,2609.3,0.38334]
[1729171174308,1.2379,2609.4,2609.3,0.38334]
[1729171174510,1.62122,2609.4,2609.3,0.38334]
[1729171174911,3.2078,2609.6,2609.3,0.38334]
[1729171175206,3.2078,2609.6,2609.5,0.38331]
[1729171175913,3.2078,2609.6,2609.5,2.15431]
[1729171177519,0.3907,2610.0,2609.9,0.38325]
[1729171177810,0.8243,2610.4,2610.3,0.38319]
[1729171178116,0.8439,2610.4,2610.3,0.38319]
[1729171178412,0.8439,2610.4,2610.3,4.21439]
[1729171178603,0.38316,2610.5,2610.4,0.38317]
[1729171178807,0.38316,2610.5,2610.4,0.78607]
[1729171179205,0.38316,2610.5,2610.3,0.38318]
[1729171179410,0.38316,2610.5,2610.4,0.38317]
[1729171179619,0.38316,2610.5,2610.1,0.4029]
[1729171179810,1.2462,2610.7,2610.4,0.38317]
[1729171180010,0.38316,2610.5,2610.4,0.38317]
[1729171180211,1.2462,2610.7,2610.2,0.3832]
[1729171180212,0.38314,2610.6,2610.2,0.3832]
[1729171180409,5.19403,2610.7,2610.1,0.4029]
[1729171180716,4.2362,2610.7,2610.1,0.4029]
[1729171180917,0.38318,2610.4,2610.3,0.38319]
[1729171181504,0.38318,2610.4,2610.1,0.4029]
[1729171181505,0.38318,2610.4,2610.2,0.38319]
[1729171181716,0.4047,2610.3,2610.2,0.38319]
[1729171182227,0.38317,2610.5,2610.1,0.4029]
[1729171182511,0.38317,2610.5,2610.3,0.38318]
[1729171182713,0.4047,2610.6,2610.1,0.4029]
[1729171182908,0.78785,2610.6,2610.4,0.38316]
[1729171183113,0.38316,2610.5,2610.4,0.38316]
[1729171185114,0.4047,2610.6,2610.1,0.4029]
[1729171185319,0.78785,2610.6,2610.5,0.38316]
[1729171187120,0.78785,2610.6,2610.4,0.38316]
[1729171187121,0.38317,2610.5,2610.4,0.38316]
[1729171190521,0.3832,2610.3,2610.2,0.38319]
[1729171190817,0.38325,2610.0,2609.9,0.38324]
[1729171191320,1.2401,2610.2,2609.7,0.38327]
[1729171191321,0.38325,2609.9,2609.7,0.38327]
[1729171191520,0.95805,2610.1,2609.6,0.3855]
[1729171191521,0.38327,2609.8,2609.6,0.3855]
[1729171191819,0.4022,2609.8,2609.7,0.38328]
[1729171193516,0.4022,2609.8,2609.4,4.44513525]
[1729171193517,0.4022,2609.8,2609.4,7.2078]
[1729171193715,0.4022,2609.8,2609.5,0.3833]
[1729171193716,0.3833,2609.6,2609.5,0.3833]
[1729171194021,0.3833,2609.6,2609.5,0.38331]
[1729171194225,0.3833,2609.6,2609.4,6.1978]
[1729171194226,0.38331,2609.5,2609.4,3.2078]
[1729171194417,0.8379,2609.7,2609.1,1.4155]
[1729171194418,0.38334,2609.4,2609.1,1.4155]
[1729171194620,0.38334,2609.4,2609.3,0.38334]
[1729171194621,0.79764,2609.4,2609.3,0.38334]
[1729171195315,0.4143,2609.4,2609.3,0.38334]
[1729171195721,0.79762,2609.4,2609.3,0.38334]
[1729171195931,0.4143,2609.4,2609.3,0.38334]
[1729171196422,0.38329,2609.6,2609.5,0.3833]
[1729171196629,0.79749,2609.6,2609.5,0.3833]
[1729171197838,0.7975,2609.6,2609.5,0.38331]
[1729171198128,0.4142,2609.6,2609.3,0.4165]
[1729171198531,0.38331,2609.5,2609.4,0.38332]
[1729171199026,0.4142,2609.6,2609.5,0.38331]
[1729171199233,0.79749,2609.6,2609.5,0.38331]
[1729171199928,3.2078,2610.2,2609.5,12.822]
[1729171200128,0.3875,2610.0,2609.9,0.38325]
[1729171200425,0.3851,2610.1,2610.0,0.38323]
[1729171203935,0.4034,2610.4,2610.3,0.38319]
[1729171204139,0.4034,2610.4,2610.3,3.37319]
[1729171205423,0.4034,2610.4,2610.3,0.38319]
[1729171205728,0.78657,2610.4,2610.3,0.38319]
[1729171206033,1.36135,2610.4,2609.9,1.01]
[1729171206232,0.38323,2610.0,2609.9,1.39324]
[1729171206527,0.7996,2610.3,2609.9,1.01]
[1729171206924,0.38322,2610.1,2610.0,0.38322]
[1729171207128,0.38322,2610.1,2610.0,0.38323]
[1729171207629,0.38321,2610.2,2610.1,0.38321]
[1729171208734,0.38322,2610.1,2610.0,0.38322]
[1729171209234,0.38322,2610.1,2610.0,0.38323]
[1729171209631,0.38321,2610.2,2610.1,0.38321]
[1729171209837,0.3832,2610.2,2610.1,0.38321]
[1729171210529,0.7996,2610.3,2609.9,1.01]
[1729171210732,0.38321,2610.2,2610.1,0.38321]
[1729171211131,0.3832,2610.2,2610.1,0.38321]
[1729171211728,0.7996,2610.3,2609.9,1.01]
[1729171211928,0.38321,2610.2,2610.1,0.38321]
[1729171212324,0.7996,2610.3,2609.9,1.96812]
[1729171212544,0.7996,2610.3,2610.2,0.3832]
[1729171212832,0.3895,2610.3,2610.2,0.3832]
[1729171213041,0.77269,2610.3,2610.2,0.3832]
[1729171214040,0.4034,2610.4,2610.0,3.796]
[1729171214232,3.2078,2610.6,2610.5,0.38316]
[1729171214233,3.59095,2610.6,2610.5,0.38316]
[1729171214540,0.38316,2610.5,2610.4,0.38316]
[1729171214741,3.2078,2610.6,2610.5,0.38316]
[1729171215033,1.215,2610.7,2610.3,3.3773]
[1729171215235,1.59814,2610.7,2610.3,4.33528]
[1729171215441,1.59813,2610.7,2610.6,0.38314]
[1729171215636,4.4228,2610.7,2610.1,6.1978]
[1729171215838,0.38321,2610.2,2610.1,0.3832]
[1729171216038,0.38324,2610.0,2609.9,1.39224]
[1729171216231,4.4228,2610.7,2609.8,3.59105]
[1729171216232,0.38325,2609.9,2609.8,3.59105]
[1729171216636,0.38325,2609.9,2609.8,0.38325]
[1729171216840,0.79784,2610.0,2609.6,4.4077]
[1729171217136,0.4146,2610.0,2609.9,0.38325]
[1729171217343,0.79783,2610.0,2609.9,0.38325]
[1729171217740,0.79783,2610.0,2609.6,4.4077]
[1729171217935,0.79783,2610.0,2609.7,0.38328]
[1729171218131,0.79783,2610.0,2609.9,0.38325]
[1729171218439,0.79783,2610.0,2609.8,0.38325]
[1729171218637,0.79783,2610.0,2609.9,0.38325]
[1729171219445,0.4146,2610.0,2609.6,3.3987]
[1729171219636,0.38326,2609.9,2609.8,0.38326]
[1729171221548,0.79784,2610.0,2609.9,0.38325]
[1729171222135,0.38325,2609.9,2609.8,0.38325]
[1729171222538,0.38328,2609.7,2609.5,2.15679329]
[1729171222738,0.38329,2609.6,2609.5,0.3833]
[1729171222940,0.80059,2609.6,2609.5,0.3833]
[1729171223144,0.80059,2609.6,2609.4,7.2068]
[1729171223546,0.80059,2609.6,2609.5,0.38331]
[1729171224440,0.4173,2609.6,2609.5,0.38331]
[1729171228044,0.80059,2609.6,2609.4,6.1978]
[1729171228240,0.8451,2609.6,2609.2,3.99029329]
[1729171228441,0.4238,2609.5,2609.3,0.38332]
[1729171228749,0.38332,2609.4,2609.3,0.38332]
[1729171229442,0.80712,2609.5,2609.4,0.38332]
[1729171229945,0.4238,2609.5,2609.4,0.38332]
[1729171230151,0.80711,2609.5,2609.4,0.38332]
[1729171231048,1.2284,2609.6,2609.5,0.38331]
[1729171231544,0.38331,2609.5,2609.4,3.77421]
[1729171231741,0.38332,2609.5,2609.3,0.38332]
[1729171231941,0.38332,2609.5,2609.3,0.38334]
[1729171232148,0.38331,2609.5,2609.3,0.38334]
[1729171232336,0.38332,2609.4,2609.3,0.38334]
[1729171233045,0.38334,2609.3,2609.2,2.99]
[1729171233248,0.80904,2609.3,2609.2,3.37334]
[1729171234148,0.80904,2609.3,2609.2,0.38334]
[1729171234342,0.4257,2609.3,2609.2,0.38334]
[1729171234542,0.80904,2609.3,2609.2,0.38334]
[1729171236351,0.38335,2609.2,2609.1,3.59116]
[1729171236552,1.21215,2609.2,2609.1,3.59116]
[1729171236845,0.8288,2609.2,2609.1,3.59116]
[1729171238249,0.8288,2609.2,2609.1,0.38336]
[1729171238448,0.8288,2609.2,2609.0,2.99]
[1729171238449,0.4257,2609.3,2609.0,2.99]
[1729171238658,0.4257,2609.3,2609.2,3.37335]
[1729171239156,0.38332,2609.4,2609.3,0.38334]
[1729171240149,0.8292,2609.5,2609.2,2.99]
[1729171240349,0.8292,2609.5,2609.3,0.38334]
[1729171240549,0.8292,2609.5,2609.2,2.99]
[1729171240752,0.38332,2609.4,2609.3,0.38333]
[1729171242055,0.38332,2609.4,2609.2,2.99]
[1729171242056,1.21251,2609.5,2609.4,0.38332]
[1729171242647,0.8292,2609.5,2609.2,2.99]
[1729171242954,1.21252,2609.5,2609.4,0.38332]
[1729171243655,0.8292,2609.5,2609.4,0.38332]
[1729171243856,0.38328,2609.7,2609.6,0.38329]
[1729171244060,0.38329,2609.6,2609.5,0.3833]
[1729171244260,3.2078,2609.8,2609.6,0.38329]
[1729171244261,0.38329,2609.7,2609.6,0.38329]
[1729171244457,3.2078,2609.8,2609.3,0.95834]
[1729171244662,3.2078,2609.8,2609.5,0.38329]
[1729171244663,0.38329,2609.6,2609.5,0.38329]
[1729171244858,0.3833,2609.6,2609.5,0.38331]
[1729171245064,4.166,2609.8,2609.2,5.14928]
[1729171245263,1.19601,2609.5,2609.4,0.38331]
[1729171245476,0.8127,2609.5,2609.4,0.38331]
[1729171245766,3.2078,2609.8,2609.3,1.34169]
[1729171245960,0.3833,2609.6,2609.5,0.3833]
[1729171246359,0.3985,2609.7,2609.2,4.1909]
[1729171246563,0.3919,2609.6,2609.2,5.14928]
[1729171246759,0.38331,2609.5,2609.4,0.38331]
[1729171247366,0.7752,2609.6,2609.5,0.38331]
[1729171248568,0.3985,2609.7,2609.3,4.16614]
[1729171248766,3.622,2609.8,2609.3,4.16614]
[1729171248767,3.2078,2609.8,2609.7,0.38328]
[1729171249271,3.2078,2609.8,2609.6,0.38328]
[1729171249272,0.38328,2609.7,2609.6,0.38328]
[1729171250064,3.2078,2609.8,2609.4,4.9573]
[1729171250365,3.59107,2609.8,2609.7,0.38328]
[1729171252369,3.59107,2609.8,2609.4,4.99929329]
[1729171252370,3.2078,2609.8,2609.4,4.99929329]
[1729171252569,0.38329,2609.7,2609.6,0.38329]
[1729171253863,0.38328,2609.7,2609.6,0.38329]
[1729171254065,3.2078,2609.8,2609.4,3.999]
[1729171254368,0.4005,2609.6,2609.5,0.38331]
[1729171257363,0.78379,2609.6,2609.5,0.38331]
[1729171257562,0.4005,2609.6,2609.5,0.38331]
[1729171258677,0.38327,2609.8,2609.7,0.38328]
[1729171262977,0.825,2610.0,2609.6,4.79679329]
[1729171263177,3.2078,2610.2,2609.9,2.99]
[1729171263382,3.2078,2610.2,2610.1,3.37322]
[1729171263879,3.2078,2610.2,2610.1,1.76322]
[1729171264480,0.7842,2610.3,2610.2,0.3832]
[1729171264481,1.1674,2610.3,2610.2,0.3832]
[1729171264684,1.1674,2610.3,2610.2,1.7632]
[1729171265772,1.1674,2610.3,2610.2,0.3832]
[1729171265976,0.7842,2610.3,2610.2,0.3832]
[1729171267279,0.38317,2610.5,2610.2,2.99]
[1729171267476,0.4175,2610.6,2610.5,0.38315]
[1729171267979,0.4175,2610.6,2610.5,0.77215]
[1729171272778,0.853,2610.8,2610.5,0.389]
[1729171272981,2.99,2611.7,2610.6,7.8274]
[1729171273184,0.3952,2611.4,2611.1,2.99]
[1729171273372,0.38301,2611.5,2611.4,0.38302]
[1729171273573,0.7844,2611.6,2611.1,2.99]
[1729171273778,1.16741,2611.6,2611.4,0.38302]
[1729171273978,0.7844,2611.6,2611.3,0.38303]
[1729171274186,0.38301,2611.5,2611.4,0.38303]
[1729171274381,0.7844,2611.6,2611.4,0.38303]
[1729171274382,1.16741,2611.6,2611.4,0.38303]
[1729171274683,1.16741,2611.6,2611.5,0.38301]
[1729171275379,0.7844,2611.6,2611.5,0.38301]
[1729171275776,0.7844,2611.6,2611.5,3.37301]
[1729171275777,0.3892,2611.6,2611.5,3.37301]
[1729171275983,0.4059,2611.9,2611.5,2.99]
[1729171276184,0.38298,2611.8,2611.7,0.38298]
[1729171276482,1.1969,2611.9,2611.4,0.95757]
[1729171276677,1.57987,2611.9,2611.8,0.38297]
[1729171278980,1.1969,2611.9,2611.8,0.38297]
[1729171279379,1.57985,2611.9,2611.8,0.38297]
[1729171280585,3.59073,2612.1,2611.8,3.37297]
[1729171280890,1.22162,2612.2,2612.1,0.38292]
[1729171281189,0.8387,2612.2,2612.1,0.38292]
[1729171281387,0.38293,2612.1,2612.0,0.38293]
[1729171281577,0.8387,2612.2,2612.1,0.38292]
[1729171281780,1.22161,2612.2,2612.1,0.38292]
[1729171281986,0.8387,2612.2,2612.1,0.38292]
[1729171282193,0.8387,2612.2,2611.9,0.4077]
[1729171282391,1.22162,2612.2,2612.1,0.38292]
[1729171283079,0.8387,2612.2,2612.1,0.38292]
[1729171284882,0.8387,2612.2,2612.1,3.37292]
[1729171285594,0.4211,2612.5,2612.1,2.99]
[1729171285797,0.4211,2612.5,2612.4,0.38288]
[1729171286185,1.18696,2612.6,2612.4,0.38288]
[1729171286186,1.18695,2612.6,2612.4,0.38288]
[1729171286697,1.18695,2612.6,2612.3,0.4189]
[1729171286698,0.8041,2612.6,2612.5,0.38287]
[1729171287202,1.18695,2612.6,2612.5,0.38287]
[1729171287499,0.8041,2612.6,2612.5,0.38287]
[1729171289198,1.18695,2612.6,2612.5,0.38287]
[1729171289601,0.8041,2612.6,2612.3,3.4089]
[1729171289804,0.8041,2612.6,2612.1,2.99]
[1729171289997,0.8041,2612.6,2612.1,0.38292]
[1729171289998,0.38292,2612.2,2612.1,0.38292]
[1729171290193,3.2078,2612.2,2611.6,1.007]
[1729171290499,0.38299,2611.7,2611.6,0.38299]
[1729171290998,0.38299,2611.7,2611.6,0.383]
[1729171291297,0.38299,2611.7,2611.4,7.2048]
[1729171292099,0.383,2611.6,2611.4,7.58781]
[1729171292311,0.383,2611.6,2611.5,0.38301]
[1729171292492,0.95737,2612.0,2611.5,0.38301]
[1729171292692,0.38299,2611.7,2611.4,7.2048]
[1729171292997,0.38298,2611.8,2611.6,0.38299]
[1729171293405,2.14452,2612.1,2611.4,7.2048]
[1729171293600,0.38301,2611.6,2611.4,6.58082]
[1729171293799,0.38304,2611.3,2611.0,6.1978]
[1729171293988,0.4103,2611.5,2611.0,6.1978]
[1729171293989,2.16665,2611.5,2611.0,6.1978]
[1729171294188,1.2091,2611.5,2611.1,0.38307]
[1729171294499,0.38305,2611.3,2611.1,0.38307]
[1729171294800,0.38305,2611.3,2611.0,6.1978]
[1729171294994,0.38304,2611.3,2611.1,0.38307]
[1729171295302,0.38304,2611.3,2611.2,0.38306]
[1729171295501,1.2091,2611.5,2611.2,0.38306]
[1729171295694,1.2091,2611.5,2611.1,0.38306]
[1729171295906,0.38304,2611.4,2611.2,0.38305]
[1729171299704,0.38305,2611.3,2611.1,0.38307]
[1729171300303,0.38304,2611.4,2611.1,0.38307]
[1729171300910,0.38304,2611.4,2611.2,0.38306]
[1729171301207,0.38303,2611.4,2611.2,0.38306]
[1729171301997,1.59212,2611.5,2611.3,0.38304]
[1729171302210,0.38303,2611.4,2611.3,0.38304]
[1729171302908,1.59212,2611.5,2611.3,0.38304]
[1729171304109,0.38303,2611.4,2611.2,2.99]
[1729171304413,1.59212,2611.5,2611.3,0.38304]
[1729171304608,0.38303,2611.4,2611.3,0.38304]
[1729171305316,1.2091,2611.5,2611.3,0.38304]
[1729171305317,1.59212,2611.5,2611.3,0.38304]
[1729171307516,1.2091,2611.5,2611.2,2.99]
[1729171307721,0.38303,2611.4,2611.3,0.38304]
[1729171308012,1.59212,2611.5,2611.3,0.38304]
[1729171308215,1.59213,2611.5,2611.3,0.38304]
[1729171308817,0.38303,2611.4,2611.3,0.38304]
[1729171309209,1.2091,2611.5,2611.3,0.38304]
[1729171309508,1.59212,2611.5,2611.3,0.38304]
[1729171312421,1.2091,2611.5,2611.2,2.99]
[1729171312613,0.38304,2611.4,2611.3,0.38304]
[1729171313020,1.59212,2611.5,2611.3,0.38303]
[1729171314407,0.38304,2611.4,2611.2,3.37305]
[1729171314720,0.38304,2611.4,2611.3,0.38304]
[1729171315720,1.59213,2611.5,2611.3,0.38303]
[1729171315923,1.59213,2611.5,2611.2,2.99]
[1729171315924,1.2091,2611.5,2611.2,2.99]
[1729171316214,0.38304,2611.3,2611.1,0.77516]
[1729171316408,0.38304,2611.3,2611.2,0.38306]
[1729171317519,0.38304,2611.3,2611.1,0.3921]
[1729171317520,0.38304,2611.4,2611.3,0.38304]
[1729171321718,0.38305,2611.3,2611.2,0.38304]
[1729171321919,0.38304,2611.4,2611.3,0.38304]
[1729171322229,0.38304,2611.4,2611.3,1.76304]
[1729171323324,0.38304,2611.4,2611.3,1.38]
[1729171323733,0.38306,2611.2,2611.1,1.38]
[1729171324233,0.3831,2610.9,2610.8,1.38]
[1729171325834,0.3978,2611.0,2610.7,0.38313]
[1729171326020,0.38312,2610.8,2610.7,0.38313]
[1729171326228,0.3978,2611.0,2610.5,3.3777]
[1729171326528,0.78089,2611.0,2610.9,0.3831]
[1729171327224,0.38311,2610.9,2610.8,0.38312]
[1729171328026,0.38312,2610.8,2610.7,3.37312]
[1729171328228,0.38311,2610.9,2610.8,0.38311]
[1729171328828,0.38312,2610.8,2610.7,3.37312]
[1729171329222,0.38312,2610.8,2610.5,1.3456]
[1729171329223,0.38314,2610.7,2610.6,0.38313]
[1729171329429,0.4087,2610.7,2610.6,0.38313]
[1729171329838,0.79183,2610.7,2610.6,0.38313]
[1729171330038,0.38314,2610.6,2610.5,3.76085]
[1729171330236,0.38314,2610.6,2610.5,0.77085]
[1729171330837,1.21673,2610.7,2610.6,0.38314]
[1729171331927,0.38314,2610.6,2610.5,3.76085]
[1729171332633,0.38314,2610.6,2610.5,3.3777]
[1729171333232,0.38314,2610.6,2610.5,3.76086]
[1729171333536,0.38314,2610.6,2610.5,3.3777]
[1729171333937,0.38317,2610.4,2610.2,0.38319]
[1729171334130,0.38319,2610.3,2610.1,3.79511]
[1729171334325,0.4117,2610.3,2610.1,3.4119]
[1729171334525,0.4117,2610.3,2610.1,3.79511]
[1729171334831,0.38322,2610.1,2610.0,3.2078]
[1729171335033,0.3891,2610.2,2609.9,0.38324]
[1729171335331,0.4205,2610.0,2609.9,0.38325]
[1729171335535,0.4205,2610.0,2609.8,2.99]
[1729171335730,0.4205,2610.0,2609.7,0.8343]
[1729171335731,0.4205,2610.0,2609.7,0.4219]
[1729171335937,0.4205,2610.0,2609.8,0.38326]
[1729171336135,0.79495,2609.9,2609.7,0.4219]
[1729171336331,0.4117,2609.9,2609.4,3.2078]
[1729171336533,0.4117,2609.9,2609.4,6.5962]
[1729171336836,0.4117,2609.9,2609.7,0.38327]
[1729171336837,0.79496,2609.9,2609.7,0.38327]
[1729171337032,0.38326,2609.8,2609.7,0.38327]
[1729171337630,0.79495,2609.9,2609.7,0.38327]
[1729171337840,0.4117,2609.9,2609.8,3.37326]
[1729171338028,0.77231,2610.2,2609.8,2.99]
[1729171338230,0.3891,2610.2,2610.1,0.38322]
[1729171339334,0.77231,2610.2,2610.1,0.38322]
[1729171339729,0.38328,2609.7,2609.6,0.38328]
[1729171340238,3.2078,2610.0,2609.5,0.4016]
[1729171340538,0.38327,2609.8,2609.7,0.38328]
[1729171341137,0.78497,2609.8,2609.5,0.4016]
[1729171341335,1.17957,2609.8,2609.6,0.38329]
[1729171341644,1.17957,2609.8,2609.6,0.38328]
[1729171342641,0.7963,2609.8,2609.5,0.4016]
[1729171342836,1.17956,2609.8,2609.7,0.38328]
[1729171343343,1.17956,2609.8,2609.6,0.38328]
[1729171343542,0.7963,2609.8,2609.7,0.38328]
[1729171343744,0.4017,2609.8,2609.7,0.38328]
[1729171344246,3.59104,2610.0,2609.8,0.38326]
[1729171344536,3.59104,2610.0,2609.9,0.4143]
[1729171344743,3.2078,2610.0,2609.9,0.8321]
[1729171344939,3.2078,2610.0,2609.9,1.63665]
[1729171345345,0.38321,2610.2,2610.1,0.38322]
[1729171348947,0.38327,2609.9,2609.8,0.38325]
[1729171349147,4.4418,2610.3,2609.7,0.95819]
[1729171349343,4.4418,2610.3,2610.0,0.38322]
[1729171349344,0.38323,2610.1,2610.0,0.38322]
[1729171349839,0.38325,2610.0,2609.9,0.38323]
[1729171350154,4.4418,2610.3,2609.7,0.95819]
[1729171350457,0.38325,2610.0,2609.9,0.38323]
[1729171351247,0.38323,2610.2,2610.1,0.38321]
[1729171351747,3.2078,2610.3,2610.2,0.3832]
[1729171351946,0.28075588,2611.1,2610.6,0.38314]
[1729171351947,3.59094,2610.7,2610.6,0.38314]
[1729171352150,3.2078,2610.7,2610.6,0.38314]
[1729171352453,3.59093,2610.7,2610.6,0.38314]
[1729171353046,3.2078,2610.7,2610.6,0.38314]
[1729171353247,3.59093,2610.7,2610.6,0.38314]
[1729171355053,3.2078,2610.7,2610.6,0.38314]
[1729171355749,0.38311,2610.9,2610.8,0.3831]
[1729171355959,4.4184,2611.1,2610.5,0.4208]
[1729171356145,0.38317,2610.5,2610.3,0.4259]
[1729171356350,0.38317,2610.5,2610.4,0.38316]
[1729171356541,0.95784,2610.7,2610.1,0.799]
[1729171356747,0.38319,2610.3,2610.2,3.59099]
[1729171356948,0.7964,2610.4,2610.3,0.38319]
[1729171357149,0.38317,2610.6,2610.5,0.38315]
[1729171358544,0.38317,2610.5,2610.4,0.38316]
[1729171362475,1.1987,2610.8,2610.4,2.99]
[1729171362676,1.1987,2610.8,2610.5,0.77025]
[1729171362677,0.38314,2610.6,2610.5,0.77025]
[1729171363566,1.1987,2610.8,2610.5,0.3871]
[1729171363870,0.38314,2610.7,2610.6,0.38313]
[1729171366267,0.38313,2610.8,2610.7,0.38313]
[1729171366465,3.2078,2611.1,2610.8,0.3831]
[1729171366466,0.38312,2610.9,2610.8,0.3831]
[1729171367875,1.35654,2611.0,2610.5,0.7835]
[1729171368171,0.38317,2610.5,2610.4,0.38316]
[1729171370967,0.38318,2610.4,2610.3,0.38318]
[1729171372075,0.38317,2610.5,2610.4,0.38317]
[1729171374975,1.2365,2610.6,2610.2,3.3762]
[1729171375175,0.38318,2610.4,2610.3,0.38318]
[1729171375786,1.2365,2610.6,2610.2,3.3762]
[1729171376082,0.38317,2610.5,2610.4,0.38317]
[1729171380591,1.2365,2610.6,2610.2,3.3762]
[1729171380791,0.38318,2610.4,2610.3,0.38317]
[1729171380993,1.20845,2610.6,2610.5,0.38316]
[1729171381284,1.20845,2610.6,2610.5,2.99]
[1729171381480,0.38316,2610.5,2610.4,0.38317]
[1729171383092,1.20846,2610.6,2610.5,0.38316]
[1729171385788,1.20846,2610.6,2610.5,1.76316]
[1729171386286,0.8253,2610.6,2610.5,1.76316]
[1729171386685,0.38313,2610.7,2610.6,0.38314]
[1729171387085,0.38313,2610.7,2610.6,0.77804]
[1729171387990,0.8011,2610.8,2610.5,1.38]
[1729171388297,0.38314,2610.6,2610.5,0.38315]
[1729171388890,0.38314,2610.6,2610.5,1.76315]
[1729171391291,0.38317,2610.4,2610.3,1.00029381]
[1729171391492,0.38317,2610.4,2610.3,1.38]
[1729171391697,0.38317,2610.4,2610.3,1.76319]
[1729171391897,1.20507,2610.4,2610.3,1.38]
[1729171392687,0.38316,2610.5,2610.4,0.38316]
[1729171392897,0.95782,2610.8,2610.5,0.38315]
[1729171392898,0.38316,2610.6,2610.5,0.38315]
[1729171393103,0.38316,2610.6,2610.5,1.76315]
[1729171393597,0.3975,2610.7,2610.6,0.38314]
[1729171393598,0.78064,2610.7,2610.6,0.38314]
[1729171393794,3.2078,2610.9,2610.6,5.2104]
[1729171393997,3.2078,2610.9,2610.8,1.76312]
[1729171394498,3.2078,2610.9,2610.8,5.98442]
[1729171394694,3.2078,2610.9,2610.8,13.40521381]
[1729171395005,1.58487,2611.2,2611.0,0.38308]
[1729171395200,1.58487,2611.2,2611.1,1.76307]
[1729171395800,1.58487,2611.2,2611.1,0.38307]
[1729171396200,1.2018,2611.2,2611.1,0.38307]
[1729171396500,3.2078,2611.4,2611.3,0.38304]
[1729171396798,0.38302,2611.5,2611.4,0.38303]
[1729171396799,1.18762,2611.5,2611.4,0.38303]
[1729171397408,1.18762,2611.5,2611.2,0.3909]
[1729171397409,0.38304,2611.4,2611.3,0.38303]
[1729171399402,0.8046,2611.5,2611.2,0.3909]